Cogmind - Beta 13 @@@ ROGUE MODE // 2024.03.31 @ 20:27:13 Player: Atsu Result: Self-destructed Performance ------------- Evolutions (1) 500 Regions Visited (3) 600 Robots Destroyed (19) 95 Value Destroyed (330) 330 Prototype IDs (0) 0 Alien Tech Used (0) 0 Bonus (-5) -5 TOTAL SCORE: 1520 Bonus ------- Follower Combat Kills 14 Friendly Fire -19 Cogmind --------- Core Integrity 247/400 Matter 229/300 Energy 100/100 System Corruption 0% Temperature Cool (0) Movement Core (1350) Ox26 Location -9/Materials Parts ------- > --- POWER (1) -------- (None) > --- PROPULSION (4) --- (None) > --- UTILITY (2) ------ Huge Storage Unit > --- WEAPON (2) ------- Light Assault Rifle > --- INVENTORY (25) --- Cooling System Large Matter Pod (87) Peak State ------------ > --- POWER ------------ Light Ion Engine > --- PROPULSION ------- Aluminum Leg Aluminum Leg Aluminum Leg Aluminum Leg > --- UTILITY ---------- Signal Interpreter Propulsion Shielding > --- WEAPON ----------- Light Assault Rifle Light Assault Rifle > --- INVENTORY -------- Huge Storage Unit Large Matter Pod Light Assault Rifle [Rating: 9] Favorites ----------- Power Light Ion Engine Engine Light Ion Engine Propulsion Aluminum Leg Leg Aluminum Leg Utility Propulsion Shielding Device Heat Sink Storage Huge Storage Unit Processor Signal Interpreter Protection Propulsion Shielding Weapon Light Assault Rifle Ballistic Gun Light Assault Rifle Build | -11 -10 -10 -9 ------- Run | Yrd Mat Min Mat Slots Evolved 2 | . . . 2 Power . | . . . . Propulsion 2 | . . . 2 Utility . | . . . . Weapon . | . . . . Parts Attached 18 | 7 7 . 4 Power 3 | 1 2 . . Engine 3 | 1 2 . . Core . | . . . . Reactor . | . . . . Propulsion 4 | 2 . . 2 Treads . | . . . . Leg 4 | 2 . . 2 Wheel . | . . . . Hover . | . . . . Flight . | . . . . Utility 7 | 2 4 . 1 Device 2 | 1 1 . . Storage 3 | 1 1 . 1 Processor 1 | . 1 . . Hackware . | . . . . Protection 1 | . 1 . . Artifact . | . . . . Weapon 4 | 2 1 . 1 Energy Gun . | . . . . Energy Cannon . | . . . . Ballistic Gun 4 | 2 1 . 1 Ballistic Cannon . | . . . . Launcher . | . . . . Special Weapon . | . . . . Impact Weapon . | . . . . Slashing Weapon . | . . . . Piercing Weapon . | . . . . Special Melee Weapon . | . . . . Unidentified Prototypes . | . . . . Parts Lost 9 | . 2 . 7 Power 2 | . 1 . 1 Propulsion 3 | . . . 3 Utility 1 | . . . 1 Weapon 3 | . 1 . 2 Highest Loss Streak 6 | . 2 . 6 To Critical Strikes . | . . . . Average Slot Usage (%) 92 | . 94 100 77 Engine 12 | . 14 14 6 Leg 29 | . 28 28 32 Device 2 | . 7 . . Storage 3 | . 1 . 11 Processor 8 | . 8 14 . Protection 9 | . 6 14 8 Ballistic Gun 25 | . 27 28 20 Naked Turns . | . . . . Heaviest Build 86 | 9 9 6 86 Greatest Support 40 | 20 20 20 40 Greatest Overweight (x) 2 | . . . 2 Average Overweight (x) . | . . . 1 Largest Inventory Capacity 25 | 5 25 5 25 Average Capacity 9 | 5 5 5 24 Most Carried 5 | 5 5 5 4 Average Carried 4 | 2 4 5 2 Final Capacity 25 | 5 5 5 25 Final Carried 5 | 4 5 5 2 Class Distribution -------------------- 100% | Mutant Dominant Class ---------------- Mutant | -10/Materials Mutant | -10/Mines Mutant | -9/Materials Resources | -11 -10 -10 -9 ----------- Run | Yrd Mat Min Mat Matter Collected 616 | 370 112 123 11 Remotely . | . . . . Salvage Created 485 | 69 129 38 249 Parts 35 | 6 12 4 13 Haulers Intercepted . | . . . . Recyclers Shooed 2 | . 2 . . Parts Field Recycled . | . . . . Retrieved Matter . | . . . . Parts Self-Destructed . | . . . . Prevented . | . . . . Kills | -11 -10 -10 -9 ------- Run | Yrd Mat Min Mat Combat Hostiles Destroyed 15 | 1 5 2 7 Guns 15 | 1 5 2 7 Classes Destroyed 6 | 2 3 . 1 Worker 1 | 1 . . . Operator 1 | . 1 . . Watcher 2 | . 1 . 1 Swarmer 10 | . 5 2 3 Grunt 4 | 1 . . 3 Sentry 1 | . . . 1 Best Kill Streak 5 | 1 5 2 4 Combat Bots Only 5 | 1 5 2 2 Max Kills in Single Turn 2 | 1 1 1 2 Gunslinging 1 | . . . 1 Exploded . | . . . . Melee . | . . . . Uniques/NPCs Destroyed . | . . . . Combat | -11 -10 -10 -9 -------- Run | Yrd Mat Min Mat Hostile Shots Fired 151 | 5 40 16 90 Missed 42 | 2 10 7 23 Damage Taken 994 | 33 240 68 653 Core 204 | . 23 28 153 Absorbed by Shields . | . . . . Redirected to Shielding 52 | . 17 2 33 Regen/Repaired (Parts) 13 | . . . 13 Core Remaining (%) 89 | 100 . 79 . Volleys Fired 87 | 7 25 7 48 Largest 2 | 2 2 2 2 Hottest 40 | 40 40 40 40 Shots Fired 149 | 14 44 14 77 Gun 149 | 14 44 14 77 Cannon . | . . . . Launcher . | . . . . Special . | . . . . Kinetic 149 | 14 44 14 77 Thermal . | . . . . Explosive . | . . . . Electromagnetic . | . . . . Robot Hit Streak 7 | 3 7 6 6 Robot Miss Streak 7 | 2 4 2 7 Penetration Max . | . . . . Secondary Targets 3 | . 1 . 2 Max Gunslinging Chain 1 | . 1 . 1 Shots Hit Robots 83 | 8 25 8 42 Core Hits 35 | 4 10 5 16 Critical Kills 1 | . 1 . . Critical Parts Destroyed . | . . . . Critical Strikes 1 | . 1 . . Destroy 1 | . 1 . . Melee Attacks . | . . . . Impact . | . . . . Slashing . | . . . . Piercing . | . . . . Sneak Attacks . | . . . . Combat Hostiles . | . . . . Follow-up Attacks . | . . . . Damage Inflicted 777 | 72 281 66 358 Guns 776 | 72 281 65 358 Cannons . | . . . . Explosions . | . . . . Melee . | . . . . Ramming 1 | . . 1 . Kinetic 776 | 72 281 65 358 Thermal . | . . . . Explosive . | . . . . Electromagnetic . | . . . . Impact . | . . . . Slashing . | . . . . Piercing . | . . . . Highest Corruption . | . . . . Average Corruption . | . . . . Corruption Purged . | . . . . Corruption Blocked . | . . . . Overload Shots . | . . . . Overflow Damage . | . . . . Projectiles . | . . . . Explosions . | . . . . Melee . | . . . . Knockbacks . | . . . . Impact . | . . . . Kinetic . | . . . . Secondary . | . . . . Self-Inflicted Damage . | . . . . Shots . | . . . . Rammed . | . . . . Targets Rammed 1 | . . 1 . Kicked 1 | . . 1 . Crushed . | . . . . Highest Temperature 6 | 6 . . 4 Average Temperature 5 | 6 . . 4 Received Heat Transfer 228 | 18 . . 210 Siege Activations . | . . . . Robots Corrupted . | . . . . Combat Hostiles . | . . . . Parts Fried . | . . . . Impact Corruptions . | . . . . Robots Melted . | . . . . Combat Hostiles . | . . . . Parts Melted . | . . . . Heat Transferred . | . . . . Parts Sabotaged . | . . . . Parts Stolen . | . . . . Parts Stripped . | . . . . Power Chain Reactions . | . . . . Alert | -11 -10 -10 -9 ------- Run | Yrd Mat Min Mat Peak Influence 203 | 25 158 158 203 Initial 61 | . 16 61 61 Average 108 | 8 82 150 125 Maximum Alert Level 1 | . . . 1 Low Security (%) 99 | 100 100 100 97 Level 1 . | . . . 2 Level 2 . | . . . . Level 3 . | . . . . Level 4 . | . . . . Level 5 . | . . . . High Security . | . . . . Max Security . | . . . . Squads Dispatched 1 | . . . 1 Investigation 1 | . . . 1 Extermination . | . . . . Reinforcement . | . . . . Assault . | . . . . Garrison . | . . . . Intercept . | . . . . Searches Triggered . | . . . . Construction Impeded . | . . . . Haulers Reinforced . | . . . . Active Scanning Responses . | . . . . Cargo Convoy Interrupts . | . . . . Stealth | -11 -10 -10 -9 --------- Run | Yrd Mat Min Mat Distress Signals 2 | . 1 . 1 Communications Jammed . | . . . . Distress Signals . | . . . . Times Spotted 28 | 1 9 5 13 Peak Tracking Total 5 | 1 5 3 5 Tactical Retreats 1 | . . 1 . Traps | -11 -10 -10 -9 ------- Run | Yrd Mat Min Mat Traps Triggered . | . . . . Indirectly . | . . . . Trap Hack Attempts . | . . . . Triggered . | . . . . Disarmed . | . . . . Reprogrammed . | . . . . Reused . | . . . . Traps Extracted . | . . . . Installed . | . . . . Triggered . | . . . . Machines | -11 -10 -10 -9 ---------- Run | Yrd Mat Min Mat Machines Disabled . | . . . . Max in Single Turn . | . . . . Machines Repaired . | . . . . Machines Dismantled . | . . . . Machines Sabotaged . | . . . . Overloaded Fab Kills . | . . . . Hacking | -11 -10 -10 -9 --------- Run | Yrd Mat Min Mat Machines Accessed 2 | . 1 . 1 Terminals . | . . . . Fabricators . | . . . . Repair Stations 1 | . . . 1 Recycling Units 1 | . 1 . . Scanalyzers . | . . . . Garrison Access . | . . . . Total Hacks 5 | . 1 . 4 Successful 4 | . 1 . 3 Failed 1 | . . . 1 Catastrophic . | . . . . Database Lockouts . | . . . . Manual . | . . . . Terminals . | . . . . Fabricators . | . . . . Repair Stations 4 | . . . 4 Recycling Units 1 | . 1 . . Scanalyzers . | . . . . Garrison Access . | . . . . Terminal Hacks . | . . . . Fabricator Hacks . | . . . . Repair Station Hacks 3 | . . . 3 Scan Component 2 | . . . 2 Repair 1 | . . . 1 Recycling Unit Hacks 1 | . 1 . . Report Inventory 1 | . 1 . . Scanalyzer . | . . . . Garrison Access Hacks . | . . . . Unauthorized Hacks . | . . . . Terminals . | . . . . Fabricators . | . . . . Repair Stations . | . . . . Recycling Units . | . . . . Scanalyzers . | . . . . Garrison Access . | . . . . Data Cores Recovered 1 | . 1 . . Used . | . . . . Hacking Detections 2 | . 1 . 1 Full Trace Events 1 | . . . 1 Feedback Events . | . . . . Feedback Blocked . | . . . . Robot Schematics Acquired . | . . . . Robots Built . | . . . . Authchips . | . . . . Time . | . . . . Total Robot Build Rating . | . . . . Part Schematics Acquired . | . . . . Parts Built . | . . . . Authchips . | . . . . Time . | . . . . Total Part Build Rating . | . . . . Parts Repaired 1 | . . . 1 Time 26 | . . . 26 Parts Recycled . | . . . . Recycled Matter . | . . . . Retrieved Matter . | . . . . Retrieved Components . | . . . . Parts Scanalyzed . | . . . . Part Schematics Acquired . | . . . . Parts Damaged . | . . . . Bothacking | -11 -10 -10 -9 ------------ Run | Yrd Mat Min Mat Used RIF Installer . | . . . . Robots Hacked . | . . . . Non-combat . | . . . . Combat . | . . . . Robot Hacks Applied . | . . . . Relay Couplers Released . | . . . . Fabnet Peak Effective % . | . . . . Robots Rewired . | . . . . Allies Hacked . | . . . . Hacks Repelled . | . . . . Allies | -11 -10 -10 -9 -------- Run | Yrd Mat Min Mat Total Allies 3 | . . 3 . Largest Group 3 | . . 3 1 Highest-Rated Group 40 | . . 40 16 Highest-Rated Ally 16 | . . 16 16 Total Orders 8 | . . 7 1 GUARD 5 | . . 5 . AID 3 | . . 2 1 Ally Attacks 11 | . . 3 8 Total Damage 100 | . . 13 87 Kills 2 | . . 1 1 Allies Corrupted . | . . . . Allies Melted . | . . . . Intel | -11 -10 -10 -9 ------- Run | Yrd Mat Min Mat Robot Analysis Total . | . . . . Derelict Logs Recovered 1 | . . 1 . Drone Launches . | . . . . Drone Recoveries . | . . . . Exploration | -11 -10 -10 -9 ------------- Run | Yrd Mat Min Mat Turns Passed 1011 | 108 313 361 229 Spaces Moved 579 | 86 181 271 41 Core 46 | 46 . . . Treads . | . . . . Legs 533 | 40 181 271 41 Wheels . | . . . . Hover . | . . . . Flight . | . . . . Fastest Speed 50 | 50 120 120 120 Average Speed 124 | 82 120 120 256 Slowest Speed 260 | 120 120 120 260 Overloaded Moves . | . . . . Propulsion Burnouts . | . . . . Robots Hopped . | . . . . Cave-ins Triggered . | . . . . Exploration Rate (%) 27 | 9 36 57 8 Regions Visited 3 Branch Regions 1 Pre-discovered Areas . | . . . . Known Exits Taken 2 | . 1 1 . Unknown Exits Taken 1 | 1 . . . Scrap Searched 1 | . . 1 . Spaces Dug . | . . . . Terrain Destroyed . | . . . . Melee . | . . . . Projectile . | . . . . AOE . | . . . . Terrain Rammed . | . . . . Walls Destroyed . | . . . . Machines Disabled . | . . . . Actions | -11 -10 -10 -9 --------- Run | Yrd Mat Min Mat Total 752 | 110 244 295 103 Wait 26 | . 1 17 8 Move 576 | 85 180 270 41 Hop . | . . . . Pick Up 29 | 11 17 . 1 Fast Attach . | . . . . Attach 16 | 7 5 . 4 Detach . | . . . . Swap 2 | . 2 . . Drop 15 | . 14 . 1 Fire 87 | 7 25 7 48 Melee . | . . . . Ram . | . . . . Kick 1 | . . 1 . Crush . | . . . . Escape Stasis . | . . . . Rewire . | . . . . Trap . | . . . . Miscellaneous . | . . . . Route ------- -11/Scrapyard -10/Materials -10/Mines -9/Materials (discovered 1 exit: Mat) History --------- Turn | Location | Event 2 | -11/Scrapyard | Met Revision 17 70 | -11/Scrapyard | Discovered new exit (range 8) 109 | -11/Scrapyard | Entered Materials 308 | -10/Materials | Build established: Mutant 411 | -10/Materials | Discovered new exit (range 10) 421 | -10/Materials | Identified exit to Mines 422 | -10/Materials | Entered Mines 477 | -10/Mines | Assisted by bots powering up and referring to "LRC-V3" 540 | -10/Mines | Received a Rocket Launcher from a helpful Derelict 586 | -10/Mines | Learned 2 Materials zone layouts 776 | -10/Mines | Discovered new exit (range 7) 782 | -10/Mines | Identified exit to Materials 783 | -10/Mines | Entered Materials 783 | -9/Materials | Accompanied by 1 ally 783 | -9/Materials | Evolved 2 slots: Propulsion x2 784 | -9/Materials | Identified exit to Materials 911 | -9/Materials | Repaired Aluminum Leg 1012 | -9/Materials | Self-destructed Last Messages --------------- 00932_ Destroyed Flight Unit. 00937_ R-06 Scavenger collects Flight Unit. 00938_ S-10 Pest destroyed. 00938_ Switching to secondary target: S-10 Pest. 00938_ S-10 Pest destroyed. 00940_ R-06 Scavenger collects Lgt. Ion Engine. 00943_ Acquired 11 matter. 00954_ Lgt. Assault Rifle destroyed. 00958_ Propulsion Shielding destroyed. 00963_ Aluminum Leg destroyed. 00968_ G-34 Mercenary destroyed. 00968_ Switching to secondary target: G-34 Mercenary. 00970_ Aluminum Leg destroyed. 00984_ W-16 Scout destroyed. 00984_ Lgt. Assault Rifle destroyed. 00997_ G-34 Mercenary destroyed. 01005_ R-06 Scavenger collects Heat Sink. 01006_ G-34 Mercenary destroyed. 01008_ R-06 Scavenger collects Ion Engine. Map ----- +----------------------------------------------------+ | | | | | | | | | | | | | | | | | | | | | ?????????????????????????????????????????????????? | | ?????????????????????????????????????????????????? | | ???????##????????????????????????????????????????? | | ???????# ########????????????????????????????????? | | ??###### ! #????????????????????????????????? | | ?? #"""% ####################?????????????? | | #""" ## ??????????????? | | """ #""" ## ^ ^ ??????????????? | | """ # + """ """ ^"""??????????????? | | """ ?#""" ## """ """ """?? ?#?????????? | | ?#""" ## """ """ """ #?????????? | | ? ??#""" ## % ^ ^ #?????????? | | ?? ??# ## % [ ^ ?????????? | | ###+########+##### ^"=" """ """ ?????????????? | | "R" *""" ""???????????????? | | ###### """@%""" ""???????????????? | | #????# % ????????????? | | ###############????# *[ u???????????? | | ???????????????????#######=%! ! ??????????? | | ?????????????????????????#%r% *% u ?????????? | | ?????????????????????????## ########/??????????? | | ???????????????????????????b #??????????????????? | | ???????????????????????????g #??????????????????? | | ??????????????????????????? #??????????????????? | | ??????????????????????????? g #??????????????????? | | ??????????????????????????? ??????????????????? | | ??????????????????????????? ??????????????????? | | ????????????????????????????T #?????????????????? | | ???????????????????????????? #?????????????????? | | ????????????????????????????? ??????????????????? | | ?????????????????????????????????????????????????? | | ?????????????????????????????????????????????????? | | ?????????????????????????????????????????????????? | | ?????????????????????????????????????????????????? | | ?????????????????????????????????????????????????? | | ?????????????????????????????????????????????????? | | ?????????????????????????????????????????????????? | | ?????????????????????????????????????????????????? | | ?????????????????????????????????????????????????? | | ?????????????????????????????????????????????????? | +----------------------------------------------------+ Best States ------------- Heat Dissipation 35 Energy Generation 10 Energy Capacity 250 Matter Stores 368 Matter Capacity 400 Sight Range 16 Robot Scan Range 14 Terrain Scan Density 10 Propulsion Shielding 33 Evasion (%) 55 Item Schematics ----------------- None Robot Schematics ------------------ None Fabricated ------------ Nothing Alien Tech Used ----------------- None Achievements -------------- Part-time Mechanic Storm Trooper Challenges ------------ None Game ------ Seed LightWeaponActivator Manual? 0 Play Time 00:17:47 Cumulative 1.6 hours Start 2024.03.31 @ 20:12:26 End 2024.03.31 @ 20:27:13 Sessions 1 Manual Loads 0 Difficulty Rogue Special Mode None Game No. 3 Rogue 3 Adventurer 0 Explorer 0 Win Type - Total 0 Types 0/0/0/0/0/0/0/0/0 Lore% 3 Gallery% 3 Achievement% 5 Wizard Run 0 Options --------- Layout 1 ASCII 0 Keyboard 0 Movement Mouse Keybinds 0 Fullscreen 1 Font 32/SmallcapsGlow Map View 50x35 Zoom Use 0% Tactical HUD 1 Map Filters NONE Filters NONE Steam 1 RUN: bbb21c30-9ee8-42f5-bcda-ca3c2d2f73f1